fUST/lending_fUST_20250406
["ID","MTS","AMOUNT","RATE_DAILY","PERIOD"]
[357241881,1743933033142,-357.0,0.0002565,3]
[357241882,1743933033151,-357.0,0.0002565,3]
[357241883,1743933033160,-318.0,0.0002565,3]
[357241884,1743933033170,-357.0,0.0002565,3]
[357241885,1743933033180,-318.0,0.0002565,3]
[357241886,1743933033189,-357.0,0.0002565,3]
[357241887,1743933033199,-357.0,0.0002565,3]
[357241888,1743933033208,-357.0,0.0002565,3]
[357241889,1743933033218,-357.0,0.0002565,3]
[357241890,1743933033227,-372.67449921,0.0002565,3]
[357241891,1743933033236,-357.0,0.0002565,3]
[357241892,1743933033246,-500.0,0.00025656,2]
[357241893,1743933033255,-501.42712041,0.00025656,2]
[357241894,1743933033265,-500.99111064,0.00025656,2]
[357241895,1743933033274,-500.0,0.00025656,2]
[357241896,1743933033284,-500.0,0.00025656,2]
[357241897,1743933033293,-500.0,0.00025656,2]
[357241898,1743933033302,-500.0,0.00025656,2]
[357241899,1743933033312,-500.0,0.00025667,2]
[357241900,1743933033321,-500.0,0.00025667,2]
[357241901,1743933033331,-500.0,0.00025667,2]
[357241902,1743933033340,-500.0,0.00025667,2]
[357241903,1743933033353,-152.27,0.00025767,2]
[357241904,1743933033362,-500.0,0.0002585,2]
[357241905,1743933033371,-500.0,0.0002585,2]
[357241906,1743933033380,-420.0,0.00026026,2]
[357241907,1743933033390,-6897.72934951,0.00026107,6]
[357241908,1743933033399,-2200.0,0.00026148,2]
[357241909,1743933033408,-157.49388037,0.00026874,14]
[357241910,1743933033417,-150.58902363,0.00027213,2]
[357241911,1743933033428,-619.86812224,0.00027312,2]
[357241912,1743933033437,-3541.43607001,0.00027313,2]
[357241948,1743933859770,181.718117,0.00013699,2]
[357241988,1743934231800,-155.0,0.00022,2]
[357241989,1743934231811,-161.0,0.00022,2]
[357241990,1743934231821,-147.70377144,0.00023014,2]
[357241991,1743934231910,-13.29622856,0.00023014,2]
[357241992,1743934231919,-702.9798699,0.00023172,2]
[357241993,1743934231929,-401.0,0.00023644,2]
[357241994,1743934231938,-500.0,0.00024022,2]
[357241995,1743934231949,-5056.1848682,0.00024358,2]
[357241996,1743934231958,-1471.4,0.000249,2]
[357241997,1743934231967,-300.0,0.00025081,2]
[357241998,1743934231976,-1015.9248055,0.00025082,2]
[357241999,1743934231985,-152.26,0.00025082,2]
[357242000,1743934231995,-156.657299,0.000252,3]
[357242001,1743934232004,-2706.27650513,0.0002559,2]
[357242002,1743934232020,-4308.58756329,0.0002559,2]
[357242003,1743934232031,-16472.04151108,0.0002559,2]
[357242004,1743934232041,-266.2658224,0.0002559,2]
[357242005,1743934232050,-26073.09839455,0.00025738,7]
[357242007,1743934232060,-419.28457398,0.00025738,7]
[357242009,1743934232070,-8387.56984687,0.000259,6]
[357242011,1743934232079,-2656.304,0.00026148,2]
[357242013,1743934232088,-8387.56984682,0.00026624,6]
[357242015,1743934232097,-401.0,0.00026644,2]
[357242017,1743934232107,-500.0,0.00026973,2]
[357242019,1743934232116,-504.59927986,0.00026973,2]
[357242020,1743934232125,-502.82631204,0.00026978,2]
[357242021,1743934232135,-151.0,0.00026984,2]
[357242022,1743934232144,-215.0738,0.00026984,2]
[357242023,1743934232153,-7194.94316031,0.00027,60]
[357242024,1743934232163,-1300.0,0.00027,2]
[357242025,1743934232172,-154.54723318,0.00027,15]
[357242027,1743934232181,-500.0,0.00027033,2]
[357242029,1743934232191,-500.0,0.00027033,2]
[357242031,1743934232200,-212.54079692,0.00027034,2]
[357242033,1743934232209,-202.65539935,0.00027039,2]
[357242035,1743934232218,-160.0,0.00027087,2]
[357242037,1743934232228,-500.0,0.0002715,2]
[357242039,1743934232237,-420.0,0.00027169,2]
[357242041,1743934232246,-500.0,0.0002722,2]
[357242043,1743934232255,-506.79875871,0.0002722,2]
[357242045,1743934232264,-500.0,0.0002722,2]
[357242047,1743934232273,-151.77788546,0.00027258,2]
[357242049,1743934232283,-500.0,0.00027313,2]
[357242051,1743934232292,-500.0,0.00027313,2]
[357242053,1743934232301,-432.133,0.00027313,2]
[357242055,1743934232310,-580.36754459,0.00027337,2]
[357242057,1743934232319,-556.63641918,0.00027338,3]
[357242059,1743934232328,-1193.49480226,0.00027338,3]
[357242062,1743934232346,-16649.72548356,0.00027338,2]
[357242176,1743934237667,-160.0,0.00024855,2]
[357242177,1743934237677,-36890.11604524,0.00027338,2]
[357242178,1743934237687,-2235.69468558,0.00027338,2]
[357242179,1743934237696,-8387.56984682,0.00027348,7]
[357242180,1743934237706,-500.0,0.00027373,2]
[357242181,1743934237715,-500.0,0.00027373,2]
[357242182,1743934237724,-500.0,0.00027373,2]
[357242183,1743934237734,-500.0,0.00027373,2]
[357242184,1743934237745,-500.0,0.00027373,2]
[357242185,1743934237754,-500.0,0.00027373,2]
[357242186,1743934237763,-500.0,0.00027373,2]
[357242187,1743934237772,-500.0,0.00027373,2]
[357242188,1743934237782,-500.0,0.00027373,2]
[357242190,1743934237792,-500.0,0.00027373,2]
[357242191,1743934237802,-500.0,0.00027373,2]
[357242193,1743934237813,-1607.09022842,0.00027385,2]
[357242195,1743934237823,-181.718117,0.00027397,2]
[357242196,1743934237832,-500.0,0.00027397,5]
[357242198,1743934237842,-500.0,0.000274,5]
[357242200,1743934237851,-503.9565089,0.00027644,4]
[357242201,1743934237861,-160.0,0.00027866,7]
[357242202,1743934237870,-1001.1089204,0.000279,2]
[357242203,1743934237879,-6607.60158632,0.0002799,2]
[357242204,1743934237889,-160.0,0.00028,3]
[357242205,1743934237899,-1001.10892039,0.0002804,2]
[357242206,1743934237908,-8387.56984682,0.00028072,7]
[357242207,1743934237917,-419.28457398,0.00028085,2]
[357242208,1743934237927,-1001.10892039,0.00028181,2]
[357242209,1743934237936,-1001.10892039,0.00028321,2]
[357242210,1743934237946,-212.54079692,0.0002843,2]
[357242211,1743934237955,-1488.54126816,0.00028441,2]
[357242212,1743934237964,-1001.10892039,0.00028461,2]
[357242213,1743934237974,-114184.95121523,0.000285,2]
[357242214,1743934237983,-1571.34440501,0.000285,7]
[357242215,1743934237993,-53539.8415288,0.00028531,2]
[357242216,1743934238002,-2235.69468558,0.00028531,2]
[357242217,1743934238011,-717.21954219,0.00028535,2]
[357242218,1743934238020,-53539.8415288,0.0002854,2]
[357242219,1743934238030,-2235.69468558,0.0002854,2]
[357242220,1743934238039,-160619.524586,0.00028551,2]
[357242221,1743934238049,-17885.5574846,0.00028551,2]
[357242222,1743934238058,-160.0,0.0002856,10]
[357242223,1743934238068,-285058.75419655,0.00028561,2]
[357242224,1743934238080,-32342.58274875,0.00028561,2]
[357242225,1743934238091,-52598.6630547,0.00028561,2]
[357242226,1743934238103,-151.0,0.00028561,7]
[357242227,1743934238112,-151.0,0.00028561,7]
[357242228,1743934238121,-151.0,0.00028561,7]
[357242229,1743934238131,-603.140882,0.00028561,2]
[357242230,1743934238140,-603.140882,0.00028561,2]
[357242231,1743934238149,-500.0,0.00028573,5]
[357242232,1743934238158,-500.0,0.00028573,5]
[357242233,1743934238168,-500.0,0.00028573,5]
[357242234,1743934238177,-500.0,0.00028573,5]
[357242235,1743934238186,-507.34377832,0.00028573,5]
[357242236,1743934238196,-250.0,0.000287,7]
[357242237,1743934238206,-8387.56984682,0.00028797,8]
[357242238,1743934238215,-166.37747976,0.000288,7]
[357242239,1743934238224,-6000.0,0.000288,2]
[357242240,1743934238234,-151.0,0.000288,18]
[357242241,1743934238243,-151.02924946,0.000289,2]
[357242242,1743934238252,-157.57,0.000289,30]
[357242243,1743934238261,-287.67,0.000289,30]
[357242244,1743934238418,-151.0,0.000289,18]
[357242245,1743934238429,-500.0,0.00028973,5]
[357242246,1743934238439,-483.3639992,0.00028973,5]
[357242247,1743934238449,-500.0,0.00028973,5]
[357242248,1743934238458,-502.19877289,0.00028973,5]
[357242249,1743934238468,-500.0,0.00028973,5]
[357242250,1743934238477,-500.0,0.00028973,5]
[357242251,1743934238487,-500.0,0.00028973,5]
[357242252,1743934238496,-0.78604785,0.00028973,5]
[357242253,1743934238508,-499.21395215,0.00028973,5]
[357242254,1743934238518,-500.0,0.00028973,5]
[357242255,1743934238527,-500.0,0.00028973,5]
[357242256,1743934238537,-500.0,0.00028973,5]
[357242257,1743934238546,-500.0,0.00028973,5]
[357242258,1743934238555,-500.0,0.00028973,5]
[357242259,1743934238565,-500.0,0.00028973,5]
[357242260,1743934238574,-500.0,0.00028973,5]
[357242261,1743934238584,-500.0,0.00028973,5]
[357242262,1743934238593,-503.70165693,0.00028973,5]
[357242263,1743934238602,-341.75041908,0.00028973,5]
[357242264,1743934238612,-500.0,0.00028973,5]
[357242265,1743934238621,-2235.69468558,0.00028978,2]
[357242266,1743934238631,-8942.77874232,0.00028988,2]
[357242267,1743934238640,-8942.77874232,0.0002899,2]
[357242268,1743934238649,-162.96941909,0.00028997,10]
[357242269,1743934238659,-224291.9289388,0.00028998,7]
[357242270,1743934238668,-200.636022,0.00028998,7]
[357242271,1743934238677,-151.0,0.00028998,7]
[357242272,1743934238687,-151.0,0.00028998,7]
[357242273,1743934238697,-151.0,0.00028998,7]
[357242274,1743934238706,-151.0,0.00028998,7]
[357242275,1743934238715,-151.0,0.00028998,7]
[357242276,1743934238725,-603.140882,0.00028998,2]
[357242277,1743934238736,-603.140882,0.00028998,2]
[357242278,1743934238747,-1005.552718,0.00029,12]
[357242279,1743934238757,-870.06470032,0.00029,2]
[357242280,1743934238766,-15021.90732737,0.00029,2]
[357242281,1743934238778,-2562.4022144,0.00029,2]
[357242282,1743934238790,-61478.18213097,0.00029,2]
[357242283,1743934238802,-462.83688589,0.00029,2]
[357242284,1743934238815,-610.02460827,0.00029,2]
[357242285,1743934238827,-536.9764501,0.00029,2]
[357242287,1743934240019,-854.96923708,0.00029,2]
[357242288,1743934240031,-42945.22076195,0.00029,2]
[357242289,1743934240042,-2161.0,0.00029,2]
[357242356,1743934242909,-38792.14241037,0.00029,2]
[357242668,1743934246007,-322.7826615,0.00029,2]
[357242969,1743935149901,184.599465,0.00013699,2]
[357243007,1743935431991,-300.0,0.00021999,2]
[357243008,1743935432001,-1100.23045724,0.00022,2]
[357243009,1743935432045,-491.93975107,0.00022,2]
[357243012,1743935437817,-4245.77194529,0.00022,2]
[357243016,1743935437872,-784.5354064,0.00022,2]
[357243018,1743935437884,-14304.81549667,0.00022,2]
[357243020,1743935437894,-1444.0,0.00022,2]
[357243021,1743935437904,-603.9562859,0.00023194,2]
[357243022,1743935437914,-500.0,0.00023297,2]
[357243023,1743935437924,-500.0,0.00023297,2]
[357243024,1743935437934,-556.28402256,0.00023297,2]
[357243025,1743935437943,-500.0,0.00023297,2]
[357243026,1743935437953,-500.0,0.00023297,2]
[357243028,1743935437964,-500.0,0.00023297,2]
[357243029,1743935437974,-500.0,0.00023297,2]
[357243030,1743935437983,-231.25056458,0.00023297,2]
[357243031,1743935437993,-500.0,0.00023297,2]
[357243032,1743935438002,-500.0,0.00023297,2]
[357243033,1743935438012,-500.0,0.00023297,2]
[357243034,1743935438023,-500.0,0.00023297,2]
[357243035,1743935438032,-500.0,0.00023297,2]
[357243036,1743935438042,-500.0,0.00023297,2]
[357243037,1743935438052,-500.0,0.00023297,2]
[357243038,1743935438062,-500.0,0.00023297,2]
[357243039,1743935438072,-500.0,0.00023297,2]
[357243040,1743935438081,-500.0,0.00023297,2]
[357243041,1743935438092,-500.0,0.00023297,2]
[357243042,1743935438102,-500.0,0.00023297,2]
[357243043,1743935438112,-500.0,0.00023297,2]
[357243044,1743935438122,-500.0,0.00023297,2]
[357243045,1743935438132,-500.0,0.00023297,2]
[357243046,1743935438142,-500.0,0.00023297,2]
[357243047,1743935438151,-500.0,0.00023297,2]
[357243048,1743935438161,-500.0,0.00023297,2]
[357243049,1743935438171,-500.0,0.00023297,2]
[357243050,1743935438181,-500.0,0.00023297,2]
[357243051,1743935438191,-500.0,0.00023297,2]
[357243052,1743935438201,-500.0,0.00023297,2]
[357243053,1743935438211,-500.0,0.00023297,2]
[357243054,1743935438222,-500.0,0.00023297,2]
[357243055,1743935438231,-500.0,0.00023297,2]
[357243056,1743935438242,-500.0,0.00023297,2]
[357243057,1743935438252,-500.0,0.00023297,2]
[357243058,1743935438262,-500.0,0.00023297,2]
[357243059,1743935438274,-433.322276,0.00023297,2]
[357243060,1743935438284,-500.0,0.00023297,2]
[357243061,1743935438294,-500.0,0.00023297,2]
[357243062,1743935438304,-500.0,0.00023297,2]
[357243063,1743935438314,-500.0,0.00023297,2]
[357243064,1743935438323,-500.0,0.00023297,2]
[357243065,1743935438333,-500.0,0.00023297,2]
[357243066,1743935438343,-500.0,0.00023297,2]
[357243067,1743935438353,-127.27039908,0.00023297,2]
[357243068,1743935438367,-372.72960092,0.00023297,2]
[357243069,1743935438380,-500.0,0.00023297,2]
[357243070,1743935438389,-18281.33990237,0.00023298,2]
[357243071,1743935438401,-2692.7137372,0.00023298,2]
[357243072,1743935440189,-500.0,0.00023297,2]
[357243073,1743935440198,-500.0,0.00023297,2]
[357243074,1743935440208,-500.0,0.00023297,2]
[357243075,1743935440217,-500.0,0.00023297,2]
[357243076,1743935440225,-500.0,0.00023297,2]
[357243077,1743935440234,-500.0,0.00023297,2]
[357243078,1743935440244,-500.0,0.00023297,2]
[357243079,1743935440253,-500.0,0.00023297,2]
[357243080,1743935440352,-500.0,0.00023297,2]
[357243081,1743935440392,-500.0,0.00023297,2]
[357243082,1743935440401,-41774.04629684,0.00023298,2]
[357243083,1743935440411,-6989.64153921,0.000239,5]
[357243084,1743935440420,-420.0,0.00023906,2]
[357243085,1743935440429,-422.505,0.00024,2]
[357243086,1743935440439,-1587.1089848,0.000244,5]
[357243087,1743935440449,-406.25728121,0.00024471,2]
[357243088,1743935440458,-40266.60571513,0.00024472,2]
[357243089,1743935440470,-949.75236137,0.00024472,2]
[357243114,1743935442983,-2087.34336436,0.00024472,2]
[357243115,1743935442993,-500.0,0.00024473,2]
[357243117,1743935443002,-500.0,0.00024473,2]
[357243118,1743935443012,-500.0,0.00024473,2]
[357243119,1743935443021,-500.0,0.00024473,2]
[357243120,1743935443030,-500.0,0.00024473,2]
[357243121,1743935443040,-500.0,0.00024473,2]
[357243122,1743935443049,-500.0,0.00024473,2]
[357243123,1743935443059,-500.0,0.00024473,2]
[357243124,1743935443068,-500.0,0.00024473,2]
[357243125,1743935443077,-500.0,0.00024473,2]
[357243126,1743935443087,-500.0,0.00024473,2]
[357243127,1743935443097,-500.0,0.00024473,2]
[357243128,1743935443106,-500.0,0.00024473,2]
[357243129,1743935443115,-500.0,0.00024473,2]
[357243130,1743935443125,-152.26,0.00024499,2]
[357243131,1743935443134,-10809.05754742,0.000245,2]
[357243132,1743935443158,-8275.0,0.000245,2]
[357243144,1743935446061,-324.89803351,0.000245,2]
[357243156,1743936321796,-175.11,0.000296,120]
[357243160,1743936412577,185.241925,0.00013699,2]
[357243182,1743936632267,-300.0,0.00023334,2]
[357243183,1743936632276,-517.45177266,0.00023335,2]
[357243184,1743936632371,-42369.26114887,0.00023335,2]
[357243186,1743936638003,-337.90960781,0.00023334,2]
[357243187,1743936638055,-2286.29673295,0.00023334,2]
[357243188,1743936638067,-2833.34558393,0.00023334,2]
[357243189,1743936638076,-1412.37614958,0.00023334,2]
[357243191,1743936641842,-0.00745749,0.00023234,2]
[357243192,1743936641855,-700.2151947,0.00023234,2]
[357243193,1743936641867,-393.15982313,0.00023234,2]
[357243194,1743936641877,-35.07968226,0.00023334,2]
[357243195,1743936641888,-500.0,0.00023334,2]
[357243196,1743936641898,-517.55256554,0.00023334,2]
[357243207,1743936643388,-2992.54352731,0.00023334,2]
[357243208,1743936643397,-500.0,0.00023334,2]
[357243209,1743936643407,-1374.75417269,0.00023334,2]
[357243210,1743936643440,-4082.797752,0.00023334,2]
[357243211,1743936643458,-1082.21883601,0.00023334,2]
[357243213,1743936643496,-4375.33308868,0.00023334,2]
[357243215,1743936643506,-257.9476633,0.00023334,2]
[357243217,1743936643516,-5457.55192469,0.00023334,2]
[357243219,1743936643526,-5457.55192469,0.00023334,2]
[357243221,1743936643536,-5457.55192469,0.00023334,2]
[357243222,1743936643546,-5457.55192469,0.00023334,2]
[357243223,1743936643557,-5457.55192469,0.00023334,2]
[357243224,1743936643566,-5457.55192469,0.00023334,2]
[357243225,1743936643576,-5457.55192469,0.00023334,2]
[357243227,1743936643586,-5457.55192469,0.00023334,2]
[357243229,1743936643596,-5457.55192469,0.00023334,2]
[357243230,1743936643606,-5457.55192469,0.00023334,2]
[357243231,1743936643616,-5457.55192469,0.00023334,2]
[357243232,1743936643625,-5457.55192469,0.00023334,2]
[357243233,1743936643635,-5457.55192469,0.00023334,2]
[357243234,1743936643645,-5457.55192469,0.00023334,2]
[357243235,1743936643656,-5457.55192469,0.00023334,2]
[357243236,1743936643667,-5457.55192469,0.00023334,2]
[357243237,1743936643677,-5457.55192469,0.00023334,2]
[357243238,1743936643686,-5457.55192469,0.00023334,2]
[357243239,1743936643698,-5457.55192469,0.00023334,2]
[357243240,1743936643708,-5457.55192469,0.00023334,2]
[357243241,1743936643719,-5457.55192469,0.00023334,2]
[357243242,1743936643729,-5457.55192469,0.00023334,2]
[357243243,1743936643738,-5457.55192469,0.00023334,2]
[357243244,1743936643749,-5457.55192469,0.00023334,2]
[357243245,1743936643759,-5457.55192469,0.00023334,2]
[357243246,1743936643769,-5457.55192469,0.00023334,2]
[357243247,1743936643779,-5457.55192469,0.00023334,2]
[357243248,1743936643789,-5457.55192469,0.00023334,2]
[357243249,1743936643799,-5457.55192469,0.00023334,2]
[357243250,1743936643813,-5457.55192469,0.00023334,2]
[357243251,1743936643823,-5457.55192469,0.00023334,2]
[357243252,1743936643832,-5457.55192469,0.00023334,2]
[357243253,1743936643843,-5457.55192469,0.00023334,2]
[357243254,1743936643851,-5457.55192469,0.00023334,2]
[357243255,1743936643860,-5457.55192469,0.00023334,2]
[357243256,1743936643870,-5457.55192469,0.00023334,2]
[357243257,1743936643881,-5457.55192469,0.00023334,2]
[357243258,1743936643891,-5457.55192469,0.00023334,2]
[357243259,1743936643901,-5457.55192469,0.00023334,2]
[357243260,1743936643911,-5457.55192469,0.00023334,2]
[357243261,1743936643921,-5457.55192469,0.00023334,2]
[357243262,1743936643931,-5457.55192469,0.00023334,2]
[357243263,1743936643940,-5457.55192469,0.00023334,2]
[357243264,1743936643950,-5457.55192469,0.00023334,2]
[357243265,1743936643960,-5457.55192469,0.00023334,2]
[357243266,1743936643969,-5457.55192469,0.00023334,2]
[357243267,1743936643979,-5457.55192469,0.00023334,2]
[357243268,1743936643989,-5457.55192469,0.00023334,2]
[357243269,1743936643999,-5457.55192469,0.00023334,2]
[357243270,1743936644009,-5457.55192469,0.00023334,2]
[357243271,1743936644019,-5457.55192469,0.00023334,2]
[357243272,1743936644029,-5457.55192469,0.00023334,2]
[357243273,1743936644039,-5457.55192469,0.00023334,2]
[357243274,1743936644049,-5457.55192469,0.00023334,2]
[357243275,1743936644058,-5457.55192469,0.00023334,2]
[357243276,1743936644068,-5457.55192469,0.00023334,2]
[357243277,1743936644078,-5457.55192469,0.00023334,2]
[357243278,1743936644091,-37748.05006144,0.00023335,2]
[357243279,1743936644101,-24638.3055079,0.00023436,2]
[357243280,1743936644111,-250.0,0.00023492,2]
[357243281,1743936644121,-1093.38247531,0.00023626,2]
[357243282,1743936644131,-199.15389301,0.00024298,2]
[357243283,1743936644140,-1488.54126814,0.00024392,2]
[357243284,1743936644150,-500.0,0.00024398,2]
[357243285,1743936644159,-428.4457084,0.00024473,2]
[357243286,1743936644169,-505.19260594,0.00024473,2]
[357243287,1743936644179,-621.8592574,0.00024473,2]
[357243288,1743936644188,-500.0,0.00024473,2]
[357243289,1743936644198,-503.55670404,0.00024473,2]
[357243290,1743936644208,-160.25511109,0.00024473,2]
[357243291,1743936644218,-500.0,0.00024473,2]
[357243292,1743936644227,-500.0,0.00024473,2]
[357243293,1743936644237,-500.0,0.00024473,2]
[357243294,1743936644247,-500.0,0.00024473,2]
[357243295,1743936644256,-500.0,0.00024473,2]
[357243296,1743936644266,-500.0,0.00024473,2]
[357243297,1743936644275,-500.0,0.00024473,2]
[357243298,1743936644285,-500.0,0.00024473,2]
[357243299,1743936644295,-412.83006671,0.00024473,2]
[357243300,1743936644304,-152.26,0.00024473,2]
[357243301,1743936644315,-190.06179808,0.0002449,2]
[357243302,1743936644324,-510.17909831,0.0002449,2]
[357243303,1743936644334,-278.31820959,0.00024491,3]
[357243304,1743936644344,-596.74740113,0.00024491,3]
[357243305,1743936644353,-151.0,0.00024491,7]
[357243306,1743936644362,-151.0,0.00024491,7]
[357243307,1743936644372,-151.0,0.00024491,7]
[357243308,1743936644382,-187.5,0.00024491,7]
[357243309,1743936644392,-190.604221,0.00024492,7]
[357243310,1743936644402,-190.604221,0.00024492,7]
[357243311,1743936644411,-190.604221,0.00024492,7]
[357243312,1743936644422,-190.604221,0.00024492,7]
[357243313,1743936644431,-190.604221,0.00024492,7]
[357243314,1743936644440,-190.604221,0.00024492,7]
[357243315,1743936644450,-482.512706,0.00024492,2]
[357243316,1743936644460,-482.512706,0.00024492,2]
[357243317,1743936644470,-482.512706,0.00024492,2]
[357243318,1743936644480,-482.512706,0.00024492,2]
[357243319,1743936644489,-482.512706,0.00024492,2]
[357243320,1743936644500,-482.512706,0.00024492,2]
[357243321,1743936644509,-151.0,0.00024493,7]
[357243322,1743936644519,-151.0,0.00024493,7]
[357243323,1743936644529,-151.0,0.00024493,7]
[357243324,1743936644540,-151.0,0.00024493,7]
[357243325,1743936644549,-273.750338,0.00024493,7]
[357243326,1743936644559,-151.0,0.00024495,7]
[357243327,1743936644568,-151.0,0.00024495,7]
[357243328,1743936644578,-80591.04441907,0.000245,2]
[357243329,1743936644588,-2000.0,0.000245,3]
[357243330,1743936644597,-2000.0,0.000245,3]
[357243331,1743936644607,-2000.0,0.000245,3]
[357243332,1743936644616,-2000.0,0.000245,3]
[357243333,1743936644625,-151.0,0.000245,7]
[357243334,1743936644635,-151.0,0.000245,7]
[357243335,1743936644645,-190.604221,0.000245,7]
[357243336,1743936644655,-190.604221,0.000245,7]
[357243337,1743936644665,-482.512706,0.000245,2]
[357243338,1743936644674,-482.512706,0.000245,2]
[357243339,1743936644684,-151.0,0.000245,7]
[357243340,1743936644693,-419.28457398,0.00024746,2]
[357243341,1743936644703,-160.0,0.00024746,2]
[357243342,1743936644712,-500.0,0.00024873,2]
[357243343,1743936644721,-503.74555423,0.00024873,2]
[357243344,1743936644730,-500.0,0.00024873,2]
[357243345,1743936644739,-500.0,0.00024873,2]
[357243346,1743936644750,-500.0,0.00024873,2]
[357243347,1743936644759,-501.16306644,0.00024873,2]
[357243348,1743936644769,-500.0,0.00024873,2]
[357243349,1743936644778,-500.0,0.00024873,2]
[357243350,1743936644788,-500.0,0.00024873,2]
[357243351,1743936644798,-500.0,0.00024873,2]
[357243352,1743936644812,-500.0,0.00024873,2]
[357243353,1743936644822,-500.0,0.00024873,2]
[357243354,1743936644831,-500.0,0.00024873,2]
[357243355,1743936644842,-500.00000009,0.00024873,2]
[357243356,1743936644852,-500.0,0.00024873,2]
[357243357,1743936644862,-500.0,0.00024873,2]
[357243358,1743936644871,-1324.26,0.000249,2]
[357243359,1743936644882,-592.41,0.000249,14]
[357243360,1743936644893,-258.9,0.000249,14]
[357243361,1743936644903,-157.57,0.000249,14]
[357243362,1743936644912,-151.0,0.000249,7]
[357243363,1743936644922,-151.0,0.000249,7]
[357243364,1743936644932,-69072.58220772,0.000249,2]
[357243401,1743936646228,-531.82810365,0.00024017,2]
[357243402,1743936646387,-561.55437166,0.00024017,2]
[357243403,1743936646397,-1093.38247531,0.00024409,2]
[357243404,1743936646407,-121.78663369,0.000249,2]
[357243405,1743936752532,-533.17,0.000249,14]
[357243406,1743936752559,-151.0,0.000275,20]
[357243407,1743936752584,-151.0,0.000284,13]
[357243408,1743936752609,-151.0,0.000285,19]
[357243409,1743936752634,-533.17,0.000286,14]
[357243410,1743936752660,-258.9,0.000291,30]
[357243411,1743936752684,-157.57,0.000291,30]
[357243412,1743936752709,-24.89,0.000296,120]
[357243413,1743936752734,-200.0,0.000296,120]
[357243414,1743936752758,-22350.0,0.0003,10]
[357243415,1743936752781,-500.0,0.0003,15]
[357243416,1743936752805,-202.0,0.0003,10]
[357243417,1743936752829,-390.0,0.0003,14]
[357243418,1743936752856,-500.0,0.0003,10]
[357243419,1743936752880,-398.22431404,0.0003,10]
[357243420,1743936752903,-8083.83753655,0.0003,10]
[357243421,1743936752931,-300.0,0.0003,120]
[357243422,1743936752956,-1000.0,0.0003,10]
[357243423,1743936759395,175.1690347,0.0003,10]
[357243424,1743936810986,157.57,0.000247,14]
[357243425,1743936811368,207.12,0.000247,14]
[357243426,1743936811468,157.57,0.000287,30]
[357243427,1743936812239,207.12,0.000287,30]
[357243428,1743936869451,426.54,0.000247,14]
[357243429,1743936869904,426.54,0.000287,14]
[357243430,1743937007907,341.23,0.000247,14]
[357243431,1743937008357,341.23,0.000286,14]
[357243432,1743937008463,157.58,0.000247,14]
[357243433,1743937009893,165.7,0.000247,14]
[357243434,1743937010411,165.7,0.000286,30]
[357243435,1743937015399,1000.0,0.0003,10]
[357243436,1743937091057,2000.0,0.000295,15]
[357243437,1743937098759,2000.0,0.000295,15]
[357243438,1743937107106,2000.0,0.000295,15]
[357243439,1743937146911,303.31,0.000247,14]
[357243440,1743937147451,303.31,0.000286,14]
[357243441,1743937204498,157.58,0.000247,14]
[357243442,1743937207803,165.7,0.000247,14]
[357243443,1743937208237,165.7,0.00029,30]
[357243444,1743937284937,212.32,0.000247,14]
[357243445,1743937285379,212.32,0.000288,14]
[357243447,1743937400226,157.58,0.000247,14]
[357243448,1743937405791,165.7,0.000247,14]